bitfinex/quotes_BTCUSD_20230109
["timestamp","ask_amount","ask_price","bid_price","bid_amount"]
[1673260110911,2.89736827,17284.0,17283.0,2.54805008]
[1673260111195,2.37695684,17284.0,17283.0,2.54805008]
[1673260111451,2.89736827,17284.0,17283.0,2.54805008]
[1673260112725,2.63961238,17284.0,17283.0,2.54805008]
[1673260116186,2.80721238,17284.0,17283.0,2.54805008]
[1673260116430,2.28680095,17284.0,17283.0,2.54805008]
[1673260117482,2.80721238,17284.0,17283.0,2.54805008]
[1673260117735,2.28680095,17284.0,17283.0,2.54805008]
[1673260117998,2.80721238,17284.0,17283.0,2.54805008]
[1673260122370,2.11920095,17284.0,17283.0,2.54805008]
[1673260123077,1.54063195,17284.0,17283.0,2.54805008]
[1673260125145,1.51963195,17284.0,17283.0,2.53805008]
[1673260125403,1.54063195,17284.0,17283.0,2.54405008]
[1673260126378,1.54063195,17284.0,17283.0,2.54395693]
[1673260126632,2.11920095,17284.0,17283.0,2.54395693]
[1673260126879,2.55275608,17284.0,17283.0,2.54395693]
[1673260127641,1.75363408,17284.0,17283.0,2.54395693]
[1673260127887,1.97418708,17284.0,17283.0,2.54395693]
[1673260129210,2.32103397,17284.0,17283.0,2.54395693]
[1673260129463,2.10048097,17284.0,17283.0,2.54395693]
[1673260129782,1.97418708,17284.0,17283.0,2.54395693]
[1673260129976,2.32103402,17284.0,17283.0,2.54395693]
[1673260130226,2.32103408,17284.0,17283.0,2.54395693]
[1673260130477,1.97418708,17284.0,17283.0,2.54395693]
[1673260130736,2.10053143,17284.0,17283.0,2.56395693]
[1673260130990,1.20662957,17284.0,17283.0,2.56395693]
[1673260132488,0.62806057,17284.0,17283.0,2.56395693]
[1673260134553,1.20662957,17284.0,17283.0,2.56395693]
[1673260134838,1.38002148,17284.0,17283.0,2.56395693]
[1673260135057,1.64025734,17284.0,17283.0,2.56395693]
[1673260135299,1.20670221,17284.0,17283.0,2.56395693]
[1673260135567,0.62813321,17284.0,17283.0,2.56395693]
[1673260136354,0.45470003,17284.0,17283.0,2.56395693]
[1673260136648,0.62813321,17284.0,17283.0,2.56395693]
[1673260136894,0.45470795,17284.0,17283.0,2.56395693]
[1673260137141,0.45470795,17284.0,17283.0,3.09630436]
[1673260137394,0.43370795,17284.0,17283.0,3.09030436]
[1673260137652,0.45470795,17284.0,17283.0,3.09030436]
[1673260137900,0.45470795,17284.0,17283.0,3.74093958]
[1673260138409,0.19447209,17284.0,17283.0,3.74093958]
[1673260138663,0.021,17284.0,17283.0,4.84936258]
[1673260138920,0.45304342,17285.0,17283.0,4.84936258]
[1673260139168,0.45304342,17285.0,17284.0,0.76262]
[1673260139424,0.45304342,17285.0,17284.0,0.4]
[1673260140186,0.47404342,17285.0,17284.0,0.4]
[1673260140437,0.01933547,17285.0,17284.0,1.94658935]
[1673260140693,0.04033547,17285.0,17284.0,3.07231406]
[1673260140943,0.04033547,17285.0,17284.0,3.07231424]
[1673260141197,0.02977945,17286.0,17285.0,0.4]
[1673260141450,0.60919321,17288.0,17285.0,2.21872141]
[1673260141451,0.00206,17288.0,17285.0,2.21872141]
[1673260141717,0.48499895,17289.0,17286.0,2.08477676]
[1673260141718,0.03405054,17289.0,17286.0,2.08477676]
[1673260141963,0.46775849,17289.0,17288.0,0.1676]
[1673260142207,1.30241677,17289.0,17288.0,0.00049321]
[1673260142461,0.63118375,17289.0,17288.0,0.00049321]
[1673260142709,0.80450302,17289.0,17286.0,0.4]
[1673260142957,0.43294817,17288.0,17286.0,0.4]
[1673260143216,0.19722981,17289.0,17287.0,0.3]
[1673260143473,5.01567758,17291.0,17288.0,1.01617189]
[1673260143724,3.5360373,17291.0,17290.0,0.3346]
[1673260144011,3.36288642,17291.0,17290.0,0.89718019]
[1673260144278,3.5360373,17291.0,17290.0,0.19996019]
[1673260144531,0.53063414,17290.0,17289.0,0.4]
[1673260144790,0.67018086,17290.0,17288.0,0.4]
[1673260145073,0.220553,17289.0,17288.0,0.4]
[1673260145315,0.45823089,17289.0,17288.0,0.4]
[1673260145556,0.220553,17289.0,17288.0,1.03548723]
[1673260145816,0.4904825,17290.0,17288.0,1.03548723]
[1673260146077,0.4904825,17290.0,17288.0,1.04548723]
[1673260146385,1.38516354,17289.0,17286.0,0.91212261]
[1673260146584,1.78331124,17289.0,17288.0,0.009]
[1673260146831,1.24725986,17289.0,17286.0,0.4]
[1673260147081,1.24725986,17289.0,17288.0,0.01]
[1673260147082,1.0172354,17289.0,17288.0,0.01]
[1673260147342,1.69345628,17289.0,17288.0,0.01]
[1673260147591,1.69341288,17289.0,17288.0,0.01]
[1673260147849,0.70718983,17290.0,17288.0,0.01]
[1673260148102,0.1676,17289.0,17287.0,0.49206444]
[1673260148363,0.4270682,17288.0,17287.0,0.49206444]
[1673260149127,0.60004654,17288.0,17287.0,0.50106444]
[1673260149379,0.4270682,17288.0,17287.0,0.49206444]
[1673260149643,0.60004903,17288.0,17287.0,0.004]
[1673260149900,0.4270682,17288.0,17287.0,0.004]
[1673260150404,0.4270682,17288.0,17287.0,0.51367562]
[1673260150661,0.17298511,17289.0,17287.0,0.71155934]
[1673260150909,0.43245331,17289.0,17287.0,0.53659915]
[1673260151681,0.43245331,17289.0,17287.0,0.53259915]
[1673260151933,0.97998741,17288.0,17287.0,0.009]
[1673260152193,1.4245023,17288.0,17287.0,0.009]
[1673260152689,0.8155023,17288.0,17287.0,0.009]
[1673260153237,0.98850273,17288.0,17287.0,0.009]
[1673260153488,0.5560341,17288.0,17287.0,0.009]
[1673260153746,0.68928751,17288.0,17287.0,0.009]
[1673260154062,1.14205665,17288.0,17287.0,0.004]
[1673260154250,1.009,17287.0,17284.0,1.38534087]
[1673260154539,0.42707059,17285.0,17284.0,1.38534087]
[1673260154791,0.42707059,17285.0,17284.0,0.98534087]
[1673260154792,1.39143749,17285.0,17284.0,0.98534087]
[1673260155040,0.7749196,17285.0,17284.0,0.98534087]
[1673260155378,1.0749196,17285.0,17284.0,0.98534087]
[1673260155564,1.0749196,17285.0,17284.0,0.99634087]
[1673260155565,0.6423,17285.0,17284.0,0.99634087]
[1673260155811,0.6423,17285.0,17284.0,0.98534087]
[1673260155812,0.97898892,17285.0,17284.0,0.98534087]
[1673260156063,1.2445413,17285.0,17284.0,0.98534087]
[1673260156313,1.21643247,17285.0,17284.0,0.98534087]
[1673260156565,1.15853769,17285.0,17284.0,0.98534087]
[1673260156817,1.85476275,17285.0,17284.0,0.99534087]
[1673260157064,1.85076275,17285.0,17284.0,0.98534087]
[1673260157331,2.9199755,17285.0,17284.0,1.06548945]
[1673260157582,2.10489701,17285.0,17284.0,1.05554945]
[1673260157833,2.40489701,17285.0,17284.0,1.05554945]
[1673260158083,2.40889701,17285.0,17284.0,1.06454945]
[1673260158340,3.01789701,17285.0,17284.0,1.06454945]
[1673260158601,3.18389701,17285.0,17284.0,1.06554945]
[1673260158857,3.44892407,17285.0,17284.0,1.06548945]
[1673260159880,3.01629701,17285.0,17284.0,1.06548945]
[1673260160135,3.14892404,17285.0,17284.0,1.06548945]
[1673260160390,3.49502947,17285.0,17284.0,1.06548945]
[1673260160659,4.36352539,17285.0,17284.0,1.06548945]
[1673260160905,4.79616814,17285.0,17284.0,1.06548945]
[1673260161159,4.36352539,17285.0,17284.0,1.06548945]
[1673260161422,3.79502947,17285.0,17284.0,1.06548945]
[1673260162189,4.31417066,17285.0,17284.0,1.06548945]
[1673260162436,4.48047066,17285.0,17284.0,1.52558987]
[1673260163206,4.48047066,17285.0,17284.0,1.59545727]
[1673260163464,5.07434779,17285.0,17284.0,1.59545727]
[1673260163713,4.48045008,17285.0,17284.0,1.59545727]
[1673260165553,4.9994079,17285.0,17284.0,1.59545727]
[1673260166022,4.9994079,17285.0,17284.0,1.59445727]
[1673260167302,5.51823523,17285.0,17284.0,1.59445727]
[1673260168565,5.75591312,17285.0,17284.0,1.59445727]
[1673260168825,6.11211236,17285.0,17284.0,1.59445727]
[1673260169576,5.21823523,17285.0,17284.0,1.76941746]
[1673260169824,5.73692063,17285.0,17284.0,1.59445727]
[1673260170318,6.25560117,17285.0,17284.0,1.59445727]
[1673260170808,6.22983151,17285.0,17284.0,1.59445727]
[1673260171062,6.13074271,17285.0,17284.0,1.59445727]
[1673260171310,3.84201496,17285.0,17284.0,1.59445727]
[1673260171562,3.84201496,17285.0,17284.0,1.52833241]
[1673260171563,3.77193707,17285.0,17284.0,1.52833241]
[1673260171809,3.19431585,17285.0,17284.0,1.52833241]
[1673260172055,3.02671585,17285.0,17284.0,1.52833241]
[1673260172310,2.43985941,17285.0,17284.0,1.52833241]
[1673260172804,2.63985941,17285.0,17284.0,1.55833241]
[1673260173338,2.38337905,17285.0,17284.0,1.55833241]
[1673260173828,2.38337905,17285.0,17284.0,1.55790111]
[1673260174424,2.90166892,17285.0,17284.0,1.55790111]
[1673260174606,3.35708299,17285.0,17284.0,1.55790111]
[1673260174856,3.65708299,17285.0,17284.0,1.58790111]
[1673260175881,3.13879312,17285.0,17284.0,1.58790111]
[1673260176139,2.38337905,17285.0,17284.0,1.58790111]
[1673260176390,3.37509176,17285.0,17284.0,1.58790111]
[1673260176644,3.26619176,17285.0,17284.0,1.58790111]
[1673260177626,2.96619176,17285.0,17284.0,1.58790111]
[1673260177888,2.85459176,17285.0,17284.0,1.58790111]
[1673260178379,3.37263679,17285.0,17284.0,1.58790111]
[1673260178575,2.85459176,17285.0,17284.0,1.58790111]
[1673260178578,2.86309176,17285.0,17284.0,1.58790111]
[1673260179090,3.16309176,17285.0,17284.0,1.58790111]
[1673260180401,3.74162776,17285.0,17284.0,1.58790111]
[1673260181152,3.32982776,17285.0,17284.0,1.58790111]
[1673260181154,3.76147341,17285.0,17284.0,1.61790111]
[1673260181404,4.10677501,17285.0,17284.0,1.61790111]
[1673260181658,4.36574904,17285.0,17284.0,1.61790111]
[1673260181919,4.36572657,17285.0,17284.0,1.61790111]
[1673260182194,3.58880316,17285.0,17284.0,1.61790111]
[1673260182430,3.73831846,17285.0,17284.0,1.61790111]
[1673260182688,4.03831846,17285.0,17284.0,1.61790111]
[1673260183993,4.03781846,17285.0,17284.0,1.61790111]
[1673260185023,3.80185556,17285.0,17284.0,1.61790111]
[1673260185277,3.31462229,17285.0,17284.0,1.61790111]
[1673260185535,3.91977726,17285.0,17284.0,1.61790111]
[1673260186336,4.35229636,17285.0,17284.0,1.61790111]
[1673260186598,2.19175267,17285.0,17284.0,1.61790111]
[1673260187905,2.62425811,17285.0,17284.0,1.61790111]
[1673260188451,2.9702624,17285.0,17284.0,1.61790111]
[1673260189414,3.40299167,17285.0,17284.0,1.61790111]
[1673260189848,3.75319835,17285.0,17284.0,1.61790111]
[1673260190106,3.40299167,17285.0,17284.0,1.61790111]
[1673260190541,4.26894306,17285.0,17284.0,1.61790111]
[1673260190753,2.19175267,17285.0,17284.0,1.61790111]
[1673260190972,3.0113661,17285.0,17284.0,1.61790111]
[1673260191193,3.83744817,17285.0,17284.0,1.61790111]
[1673260191434,4.34807649,17285.0,17284.0,1.61790111]
[1673260191659,3.82846306,17285.0,17284.0,1.61790111]
[1673260191883,3.77355004,17285.0,17284.0,1.61790111]
[1673260192307,4.36040648,17285.0,17284.0,1.61790111]
[1673260192800,4.36040648,17285.0,17284.0,1.58790111]
[1673260193230,3.77355004,17285.0,17284.0,1.58790111]
[1673260193665,4.36040648,17285.0,17284.0,1.68790111]
[1673260194144,3.26292172,17285.0,17284.0,1.68790111]
[1673260194361,3.84977816,17285.0,17284.0,1.68790111]
[1673260195253,3.26292172,17285.0,17284.0,1.68790111]
[1673260195913,3.31629322,17285.0,17284.0,1.68790111]
[1673260196382,3.90314966,17285.0,17284.0,1.68790111]
[1673260196605,4.42034813,17285.0,17284.0,1.65790111]
[1673260197046,4.42034813,17285.0,17284.0,1.58803371]
[1673260198140,4.42034813,17285.0,17284.0,1.64796445]
[1673260198363,3.83349169,17285.0,17284.0,1.64796445]
[1673260199257,4.12276169,17285.0,17284.0,1.64796445]
[1673260199468,4.13126169,17285.0,17284.0,1.64796445]
[1673260200116,4.13126169,17285.0,17284.0,1.58803371]
[1673260200791,4.14938573,17285.0,17284.0,1.58803371]
[1673260201328,3.63218726,17285.0,17284.0,1.58376671]
[1673260202877,3.63218726,17285.0,17284.0,1.64369745]
[1673260203898,4.21072326,17285.0,17284.0,1.64369745]
[1673260204186,3.51005326,17285.0,17284.0,1.64369745]
[1673260204723,3.51005326,17285.0,17284.0,1.58376671]
[1673260205244,3.81005326,17285.0,17284.0,1.58376671]
[1673260205521,3.95084351,17285.0,17284.0,1.64412236]
[1673260206335,3.50155326,17285.0,17284.0,1.81908255]
[1673260206589,3.50155326,17285.0,17284.0,1.58376671]
[1673260206590,4.67209053,17285.0,17284.0,1.58376671]
[1673260207691,4.65337477,17285.0,17284.0,1.64412236]
[1673260207945,3.429466,17285.0,17284.0,1.64412236]
[1673260208607,2.85093,17285.0,17284.0,1.64412236]
[1673260209053,3.73617478,17285.0,17284.0,1.64412236]
[1673260209779,3.43617478,17285.0,17284.0,1.64412236]
[1673260210044,2.85093,17285.0,17284.0,1.64412236]
[1673260210552,2.602956,17285.0,17284.0,1.64412236]
[1673260211099,3.12313963,17285.0,17284.0,1.64412236]
[1673260211354,4.16350458,17285.0,17284.0,1.64412236]
[1673260211880,4.68368073,17285.0,17284.0,1.64412236]
[1673260212191,4.16350458,17285.0,17284.0,1.64412236]
[1673260212451,3.181492,17285.0,17284.0,1.64412236]
[1673260212707,3.12314825,17285.0,17284.0,1.64412236]
[1673260212961,3.70168425,17285.0,17284.0,1.64412236]
[1673260213529,4.00628425,17285.0,17284.0,1.64412236]
[1673260213786,4.59157687,17285.0,17284.0,1.64412236]
[1673260217188,3.71304087,17285.0,17284.0,1.64412236]
[1673260220342,4.29157687,17285.0,17284.0,1.64412236]
[1673260221680,5.07927159,17285.0,17284.0,1.64412236]
[1673260222211,4.59157687,17285.0,17284.0,1.64412236]
[1673260222606,4.59157687,17285.0,17284.0,1.58376671]
[1673260223639,4.59157687,17285.0,17284.0,1.64384476]
[1673260225727,4.59157687,17285.0,17284.0,1.58376671]
[1673260230746,4.59157687,17285.0,17284.0,1.6438487]
[1673260231001,5.16712388,17285.0,17284.0,1.6438487]
[1673260231259,4.59157687,17285.0,17284.0,1.6438487]
[1673260233425,4.75787687,17285.0,17284.0,1.6438487]
[1673260235577,4.75787687,17285.0,17284.0,1.54168363]
[1673260239269,4.92547687,17285.0,17284.0,1.54168363]
[1673260239741,5.56713923,17285.0,17284.0,1.54168363]
[1673260240240,5.56713923,17285.0,17284.0,1.51168363]
[1673260241069,5.56713923,17285.0,17284.0,1.30678318]
[1673260241302,5.56713923,17285.0,17284.0,1.2937899]
[1673260242462,5.56713923,17285.0,17284.0,1.28522127]
[1673260242733,5.56713923,17285.0,17284.0,1.16154193]
[1673260244001,5.519354,17285.0,17284.0,1.16154193]
[1673260244248,4.84146091,17285.0,17284.0,1.16154193]
[1673260244477,5.41226865,17285.0,17284.0,1.16154193]
[1673260245274,5.51365706,17285.0,17284.0,1.16154193]
[1673260250459,4.92836444,17285.0,17284.0,0.70033099]
[1673260250716,4.25616829,17285.0,17284.0,0.24355167]
[1673260250978,1.11429124,17284.0,17283.0,2.28865939]
[1673260251240,3.6427047,17284.0,17283.0,2.24595052]
[1673260252528,3.7797047,17284.0,17283.0,2.24995052]
[1673260252789,4.28009571,17284.0,17283.0,2.24595052]
[1673260253593,4.56940571,17284.0,17283.0,2.24595052]
[1673260253882,4.70640571,17284.0,17283.0,2.24995052]
[1673260254144,4.20917301,17284.0,17283.0,2.24995052]
[1673260254663,4.04157301,17284.0,17283.0,2.24995052]
[1673260255498,4.04157301,17284.0,17283.0,2.35851583]
[1673260256517,4.04157301,17284.0,17283.0,2.24995052]
[1673260256765,4.63545014,17284.0,17283.0,2.24995052]
[1673260257292,4.63545014,17284.0,17283.0,2.14075972]
[1673260258086,4.63545014,17284.0,17283.0,2.10324717]
[1673260258384,4.63545014,17284.0,17283.0,2.00211824]
[1673260259131,4.63545014,17284.0,17283.0,1.68189821]
[1673260259132,4.52365184,17284.0,17283.0,1.68189821]
[1673260259151,0.4,17283.0,17282.0,0.004]
[1673260259409,0.607565,17281.0,17278.0,1.26794045]
[1673260259655,0.607565,17279.0,17278.0,0.40194045]
[1673260259902,3.10147705,17279.0,17278.0,0.40194045]
[1673260260165,2.86379916,17279.0,17278.0,0.40194045]
[1673260260676,3.36071938,17279.0,17278.0,0.50985156]
[1673260261971,3.36071938,17279.0,17278.0,0.10985156]
[1673260262228,3.89005205,17279.0,17278.0,0.10985156]
[1673260263014,3.89005205,17279.0,17278.0,0.10356721]
[1673260263246,3.89005205,17279.0,17278.0,0.10336741]
[1673260263763,3.89005205,17279.0,17278.0,0.004]
[1673260264057,1.26462907,17278.0,17277.0,0.00342848]
[1673260264301,3.00093907,17278.0,17277.0,0.00342848]
[1673260264835,3.00093907,17278.0,17276.0,4.91158678]
[1673260265096,3.2353549,17278.0,17276.0,4.91158678]
[1673260265389,3.10693907,17278.0,17277.0,0.004]
[1673260266407,3.00093907,17278.0,17276.0,4.91158678]
[1673260266677,3.10693907,17278.0,17276.0,4.91558678]
[1673260266954,3.00093907,17278.0,17276.0,4.81057135]
[1673260267210,0.52869104,17277.0,17276.0,4.79545595]
[1673260267473,2.26510304,17277.0,17276.0,4.74369551]
[1673260268228,2.26510304,17277.0,17276.0,4.65541616]
[1673260268726,2.26510304,17277.0,17276.0,4.59719833]
[1673260268988,2.87266804,17277.0,17276.0,4.59719833]
[1673260269285,3.25281184,17277.0,17276.0,4.60319833]
[1673260269499,2.90766804,17277.0,17276.0,4.60319833]
[1673260269756,2.90766804,17277.0,17276.0,4.4849987]
[1673260275876,3.42741376,17277.0,17276.0,4.4849987]
[1673260277139,3.42741376,17277.0,17276.0,4.65995889]
[1673260277140,2.378977,17277.0,17276.0,4.65995889]
[1673260277398,0.46814849,17277.0,17276.0,4.6525987]
[1673260277647,0.798957,17277.0,17276.0,4.6525987]
[1673260278456,0.798957,17277.0,17276.0,4.6525321]
[1673260278698,0.76315394,17277.0,17276.0,4.6525321]
[1673260279212,0.76315394,17277.0,17276.0,6.14111463]
[1673260279484,1.19635967,17277.0,17276.0,6.51200463]
[1673260280750,1.19635967,17277.0,17276.0,8.43127863]
[1673260280994,1.20735967,17277.0,17276.0,8.50327863]
[1673260281515,1.20735967,17277.0,17276.0,7.90327863]
[1673260284214,1.20735967,17277.0,17276.0,8.48211563]
[1673260285438,1.20735967,17277.0,17276.0,8.40505768]
[1673260285692,1.20735967,17277.0,17276.0,7.75617658]
[1673260286701,1.20735967,17277.0,17276.0,8.40259004]
[1673260287197,1.20735967,17277.0,17276.0,7.75617658]
[1673260288473,1.20735967,17277.0,17276.0,7.00973958]
[1673260288739,1.20735967,17277.0,17276.0,5.75880115]
[1673260290498,1.20735967,17277.0,17276.0,5.17996415]
[1673260292277,0.79071914,17277.0,17276.0,5.17996415]
[1673260292512,0.44420573,17277.0,17276.0,5.17996415]
[1673260294226,0.18428147,17277.0,17276.0,5.17996415]
[1673260294466,0.011,17277.0,17276.0,5.17996415]
[1673260295983,0.66606985,17277.0,17276.0,5.17996415]
[1673260296246,1.24487385,17277.0,17276.0,5.17996415]
[1673260296496,1.82367785,17277.0,17276.0,4.80907415]
[1673260298969,1.82367785,17277.0,17276.0,12.78548415]
[1673260299224,1.82367785,17277.0,17276.0,13.14787415]
[1673260301573,2.450848,17277.0,17276.0,13.14787415]
[1673260301833,2.45088218,17277.0,17276.0,13.14787415]
[1673260302571,2.0176388,17277.0,17276.0,13.14787415]
[1673260302812,2.45088056,17277.0,17276.0,13.14787415]
[1673260303070,2.45088056,17277.0,17276.0,12.78548415]
[1673260303319,2.0176388,17277.0,17276.0,13.14787415]
[1673260304021,2.0176388,17277.0,17276.0,12.92447415]
[1673260304786,2.0176388,17277.0,17276.0,12.56208415]
[1673260305854,2.53748984,17277.0,17276.0,12.45028415]
[1673260306370,3.11629384,17277.0,17276.0,12.45028415]
[1673260308671,3.11629384,17277.0,17276.0,12.45019691]
[1673260313542,2.5964428,17277.0,17276.0,12.45019691]
[1673260314054,3.11660822,17277.0,17276.0,12.45019691]
[1673260315081,2.5964428,17277.0,17276.0,12.45019691]
[1673260315636,3.11669302,17277.0,17276.0,12.45019691]
[1673260315887,3.11669318,17277.0,17276.0,12.45019691]
[1673260316386,3.11669016,17277.0,17276.0,12.45019691]
[1673260316643,3.11669157,17277.0,17276.0,12.45019691]
[1673260317380,2.5964428,17277.0,17276.0,12.45019691]
[1673260317629,3.08540099,17277.0,17276.0,12.45019691]
[1673260317889,2.5964428,17277.0,17276.0,12.45019691]
[1673260322693,2.5964428,17277.0,17276.0,12.45158591]
[1673260323512,3.18153414,17277.0,17276.0,12.45158591]
[1673260323763,2.5964428,17277.0,17276.0,12.45158591]
[1673260324019,3.18188624,17277.0,17276.0,12.45158591]
[1673260324281,3.61885476,17277.0,17276.0,12.45158591]
[1673260324579,3.61885476,17277.0,17276.0,12.55216756]
[1673260324785,3.61885474,17277.0,17276.0,12.55216756]
[1673260325044,2.5964428,17277.0,17276.0,12.55216756]
[1673260325877,3.18188538,17277.0,17276.0,12.55216756]
[1673260326107,2.5964428,17277.0,17276.0,12.55216756]
[1673260326357,3.1820107,17277.0,17276.0,12.55216756]
[1673260328460,2.5964428,17277.0,17276.0,12.55216756]
[1673260328681,3.1820107,17277.0,17276.0,12.55216756]
[1673260328926,2.5964428,17277.0,17276.0,12.55216756]
[1673260329187,3.1820107,17277.0,17276.0,12.55216756]
[1673260330460,3.1820107,17277.0,17276.0,12.55209737]
[1673260333454,3.61946472,17277.0,17276.0,12.55209737]
[1673260333725,3.61946539,17277.0,17276.0,12.55209737]
[1673260334229,3.61944864,17277.0,17276.0,11.1830266]
[1673260334762,3.18246767,17277.0,17276.0,11.1830266]
[1673260337502,2.5964428,17277.0,17276.0,11.1830266]
[1673260341621,2.5964428,17277.0,17276.0,11.08244495]
[1673260342525,2.5964428,17277.0,17276.0,11.17760198]
[1673260343826,3.18269574,17277.0,17276.0,11.17760198]
[1673260346011,1.94882189,17277.0,17276.0,11.35256217]
[1673260346287,1.37001789,17277.0,17276.0,12.20135344]
[1673260346541,0.20496095,17277.0,17276.0,11.54849198]
[1673260347545,0.20496095,17277.0,17276.0,11.45333495]
[1673260347805,0.53208068,17277.0,17276.0,11.45333495]
[1673260348054,0.011,17277.0,17276.0,11.45333495]
[1673260348299,0.29480602,17277.0,17276.0,11.45333495]
[1673260348547,0.29480585,17277.0,17276.0,11.54927118]
[1673260348784,0.53207953,17277.0,17276.0,11.54927118]
[1673260349048,0.81588538,17277.0,17276.0,11.54927118]
[1673260349303,0.81588493,17277.0,17276.0,11.54927118]
[1673260349547,0.29480585,17277.0,17276.0,11.54927118]
[1673260350830,0.81584192,17277.0,17276.0,11.54927118]
[1673260351849,0.29480585,17277.0,17276.0,11.54927118]
[1673260352106,0.81579258,17277.0,17276.0,11.54927118]
[1673260352364,0.29480585,17277.0,17276.0,11.54927118]
[1673260353114,0.81579345,17277.0,17276.0,11.54927118]
[1673260353886,0.81579345,17277.0,17276.0,12.23282182]
[1673260354152,0.78105234,17277.0,17276.0,13.79142028]
[1673260354395,0.78105234,17277.0,17276.0,13.79992028]
[1673260354396,0.26006474,17277.0,17276.0,13.79992028]
[1673260354661,0.7813028,17277.0,17276.0,13.79992028]
[1673260354908,0.60767578,17277.0,17276.0,13.79992028]
[1673260355438,0.60767578,17277.0,17276.0,14.14258047]
[1673260355447,0.43404047,17277.0,17276.0,14.26762028]
[1673260355946,0.43387079,17278.0,17276.0,14.26762028]
[1673260356194,0.43387079,17278.0,17277.0,1.35785146]
[1673260356474,0.43387079,17278.0,17277.0,2.33665546]
[1673260356963,0.43387079,17278.0,17277.0,3.02960373]
[1673260357485,0.43387079,17278.0,17277.0,3.04460373]
[1673260357749,0.43387079,17278.0,17277.0,3.62340773]
[1673260357750,0.17344058,17278.0,17277.0,3.62340773]
[1673260359242,0.45787079,17279.0,17277.0,3.62340773]
[1673260359509,0.45787079,17279.0,17278.0,1.09779]
[1673260359755,0.45787079,17279.0,17278.0,2.96481557]
[1673260360009,0.19744058,17279.0,17278.0,2.80561557]
[1673260360262,0.19744058,17279.0,17278.0,3.45847703]
[1673260360525,0.21544058,17279.0,17278.0,3.38438557]
[1673260360768,0.19744058,17279.0,17278.0,4.03724703]
[1673260361007,0.21544058,17279.0,17278.0,4.03824703]
[1673260361262,0.042,17279.0,17278.0,4.03824703]
[1673260362119,0.042,17279.0,17278.0,3.38538557]
[1673260363528,0.042,17279.0,17278.0,4.03824703]
[1673260365098,0.042,17279.0,17278.0,4.67314703]
[1673260368332,0.042,17279.0,17278.0,4.37314703]
[1673260368574,0.042,17279.0,17278.0,4.67314703]
[1673260368828,0.042,17279.0,17278.0,4.37314703]
[1673260369083,0.042,17279.0,17278.0,4.67314703]
[1673260371647,0.042,17279.0,17278.0,4.76958857]
[1673260371896,0.042,17279.0,17278.0,4.46958857]
[1673260372663,0.042,17279.0,17278.0,4.30188857]
[1673260373952,0.042,17279.0,17278.0,3.64902711]
[1673260374225,0.042,17279.0,17278.0,3.31412711]
[1673260377580,0.042,17279.0,17278.0,2.73535711]
[1673260377835,0.042,17279.0,17278.0,2.02587154]
[1673260378853,0.024,17279.0,17278.0,2.02487154]
[1673260379100,0.024,17279.0,17278.0,2.03687154]
[1673260379615,0.024,17279.0,17278.0,2.02837154]
[1673260380634,0.19696136,17279.0,17278.0,2.02837154]
[1673260380921,0.19696136,17279.0,17278.0,1.44960154]
[1673260382951,0.45618795,17279.0,17278.0,1.44960154]
[1673260383248,0.45618795,17279.0,17278.0,1.44948868]
[1673260383823,1.06166309,17279.0,17278.0,1.44948868]
[1673260384073,1.06253764,17279.0,17278.0,1.44948868]
[1673260384323,0.62981195,17279.0,17278.0,1.44948868]
[1673260384575,0.62981195,17279.0,17278.0,0.87071868]
[1673260384825,1.10605497,17279.0,17278.0,0.87071868]
[1673260385092,1.10605497,17279.0,17278.0,0.01439916]
[1673260385093,1.84747699,17279.0,17278.0,0.01439916]
[1673260385350,1.50130019,17279.0,17278.0,0.01439916]
[1673260385849,1.06852952,17279.0,17278.0,0.01439916]
[1673260386099,1.64726652,17279.0,17278.0,0.01439916]
[1673260386869,1.93842949,17279.0,17278.0,0.01439916]
[1673260387132,4.56047612,17279.0,17278.0,0.01439916]
[1673260387390,3.50325415,17279.0,17278.0,0.00549182]
[1673260387719,3.92851593,17279.0,17278.0,0.00549182]
[1673260388413,4.27380676,17279.0,17278.0,0.00549182]
[1673260388676,2.86365613,17279.0,17278.0,0.00549182]
[1673260388945,2.43839435,17279.0,17278.0,0.00549182]
[1673260389193,2.33391639,17279.0,17278.0,0.00549182]
[1673260390208,1.75517939,17279.0,17278.0,0.00549182]
[1673260390471,0.90182952,17279.0,17278.0,0.00549182]
[1673260390716,1.06952952,17279.0,17278.0,0.00549182]
[1673260391723,0.4948075,17279.0,17278.0,0.00549182]
[1673260392244,0.3271075,17279.0,17278.0,0.00549182]
[1673260393276,0.31527703,17279.0,17278.0,1.01440119]
[1673260393541,0.90327378,17279.0,17278.0,1.01440119]
[1673260393796,0.61845854,17279.0,17278.0,1.01440119]
[1673260394565,0.44525567,17279.0,17278.0,1.01440119]
[1673260394812,0.18542194,17279.0,17278.0,1.59317119]
[1673260395064,0.44531238,17279.0,17278.0,1.59317119]
[1673260395780,0.70096092,17279.0,17278.0,1.01440119]
[1673260396057,0.61851111,17279.0,17278.0,1.01440119]
[1673260396575,0.79177219,17279.0,17278.0,1.01440119]
[1673260396833,1.13409882,17279.0,17278.0,1.01440119]
[1673260397085,1.13409881,17279.0,17278.0,1.01440119]
[1673260397347,0.78764353,17279.0,17278.0,1.01440119]
[1673260399733,1.1341778,17279.0,17278.0,1.01440119]
[1673260401005,1.13417493,17279.0,17278.0,1.01440119]
[1673260402258,1.05172934,17279.0,17278.0,1.01440119]
[1673260402524,0.61858196,17279.0,17278.0,1.01440119]
[1673260402783,0.44530235,17279.0,17278.0,1.01440119]
[1673260404563,0.44530235,17279.0,17278.0,1.00890937]
[1673260404778,0.61956271,17279.0,17278.0,1.08790937]
[1673260405066,0.61956271,17279.0,17278.0,1.66667937]
[1673260405326,0.61959212,17279.0,17278.0,1.66667937]
[1673260405590,0.83408411,17279.0,17278.0,0.52876938]
[1673260405847,0.44637246,17279.0,17278.0,0.16637938]
[1673260406105,0.38649342,17279.0,17278.0,0.16637938]
[1673260407112,0.90633705,17279.0,17278.0,0.16637938]
[1673260407371,0.38649342,17279.0,17278.0,0.16637938]
[1673260407627,0.90646041,17279.0,17278.0,0.16637938]
[1673260407886,1.18415296,17279.0,17278.0,0.16637938]
[1673260408145,1.76288996,17279.0,17278.0,0.16637938]
[1673260408654,1.48519741,17279.0,17278.0,0.16637938]
[1673260409413,0.96523042,17279.0,17278.0,0.16637938]
[1673260409953,1.48537007,17279.0,17278.0,0.16637938]
[1673260410217,0.96523042,17279.0,17278.0,0.16637938]
[1673260410974,1.48537007,17279.0,17278.0,0.16637938]
[1673260411219,0.96523042,17279.0,17278.0,0.16637938]
[1673260411478,1.48537007,17279.0,17278.0,0.16637938]
[1673260412479,1.48537007,17279.0,17278.0,0.52876938]
[1673260413218,1.48537007,17279.0,17278.0,0.16637938]
[1673260414240,1.9308529,17279.0,17278.0,0.16637938]
[1673260414487,2.51643833,17279.0,17278.0,0.16637938]
[1673260414736,1.9308529,17279.0,17278.0,0.16637938]
[1673260415260,1.54396742,17279.0,17278.0,0.16628603]